bitfinex-derivatives/quotes_BNBF0:USTF0_20230831
["timestamp","ask_amount","ask_price","bid_price","bid_amount"]
[1693469529711,0.07575675,223.51,223.27,0.20520353]
[1693469529911,0.07575675,223.51,223.28,0.20520353]
[1693469530112,0.07575675,223.51,223.29,0.20520353]
[1693469530407,0.07575675,223.51,223.3,0.20520353]
[1693469530612,0.07575675,223.51,223.23,0.07338544]
[1693469530813,0.07575675,223.51,223.24,0.20520999]
[1693469532812,0.07575675,223.51,223.25,0.20520999]
[1693469533011,0.07575675,223.51,223.26,0.20520999]
[1693469533211,0.07575675,223.51,223.27,0.20520999]
[1693469533511,0.07575675,223.51,223.28,0.20520999]
[1693469533711,0.07575675,223.51,223.23,0.20520999]
[1693469533908,0.07575675,223.51,223.24,0.20520999]
[1693469534109,0.07575675,223.51,223.23,0.20520999]
[1693469534308,0.07575675,223.51,223.24,0.20520999]
[1693469534511,0.07575675,223.51,223.25,0.20520999]
[1693469534710,0.07575675,223.51,223.23,0.20520999]
[1693469534911,0.07575675,223.51,223.24,0.20520999]
[1693469535107,0.07575675,223.51,223.25,0.20520999]
[1693469535410,0.07575675,223.51,223.26,0.20520999]
[1693469535609,0.07575675,223.51,223.27,0.20520999]
[1693469535809,0.07575675,223.51,223.28,0.20520999]
[1693469536012,0.07575675,223.51,223.22,0.20520999]
[1693469536207,0.07575675,223.51,223.23,0.20520999]
[1693469536413,0.07575675,223.51,223.24,0.20520999]
[1693469536609,0.07575675,223.51,223.25,0.20520999]
[1693469536809,0.07575675,223.51,223.26,0.20520999]
[1693469537014,0.07575675,223.51,223.27,0.20520999]
[1693469537214,0.07575675,223.51,223.28,0.20520999]
[1693469537414,0.07575675,223.51,223.22,0.20520999]
[1693469537616,0.07575675,223.51,223.23,0.20520999]
[1693469537816,0.07575675,223.51,223.22,0.20520999]
[1693469538018,0.07575675,223.51,223.23,0.20520999]
[1693469538314,0.07575675,223.51,223.24,0.20520999]
[1693469538510,0.07575675,223.51,223.25,0.20520999]
[1693469538815,0.07575675,223.51,223.26,0.20520999]
[1693469539017,0.07575675,223.51,223.27,0.20520999]
[1693469539316,0.07575675,223.51,223.28,0.20520999]
[1693469539517,0.07575675,223.51,223.29,0.20520999]
[1693469539717,0.07575675,223.51,223.21,0.20520999]
[1693469540016,0.07575675,223.51,223.22,0.20520999]
[1693469540218,0.07575675,223.51,223.21,0.20520999]
[1693469540420,0.07575675,223.51,223.22,0.20520999]
[1693469540718,0.07575675,223.51,223.23,0.20520999]
[1693469540918,0.07575675,223.51,223.24,0.20520999]
[1693469541118,0.07575675,223.51,223.25,0.20520999]
[1693469541321,0.07575675,223.51,223.26,0.20520999]
[1693469541620,0.07575675,223.51,223.27,0.20520999]
[1693469541820,0.07575675,223.51,223.21,0.20520999]
[1693469542013,0.07575675,223.51,223.22,0.20520999]
[1693469542214,0.07575675,223.51,223.23,0.20520999]
[1693469542414,0.07575675,223.51,223.24,0.20520999]
[1693469542614,0.07575675,223.51,223.25,0.20520999]
[1693469542817,0.07575675,223.51,223.21,0.20520999]
[1693469543018,0.07575675,223.51,223.22,0.20520999]
[1693469543220,0.07575675,223.51,223.21,0.20520999]
[1693469543420,0.07575675,223.51,223.22,0.20520999]
[1693469543720,0.07575675,223.51,223.23,0.20520999]
[1693469543913,0.07575675,223.51,223.24,0.20520999]
[1693469544119,0.07575675,223.51,223.25,0.20520999]
[1693469544420,0.07575675,223.51,223.26,0.20520999]
[1693469544621,0.07575675,223.51,223.27,0.20520999]
[1693469544921,0.07575675,223.51,223.28,0.20520999]
[1693469545115,0.07575675,223.51,223.2,0.07338544]
[1693469545116,0.07575675,223.51,223.29,0.20520999]
[1693469545317,0.07575675,223.51,223.21,0.20520999]
[1693469545520,0.07575675,223.51,223.22,0.20520759]
[1693469545723,0.07575675,223.51,223.23,0.20520759]
[1693469545922,0.07575675,223.51,223.24,0.20520759]
[1693469546223,0.07575675,223.51,223.25,0.20520759]
[1693469546424,0.07575675,223.51,223.26,0.20520759]
[1693469546623,0.07575675,223.51,223.27,0.20520759]
[1693469546823,0.07575675,223.51,223.21,0.20520759]
[1693469547123,0.07575675,223.51,223.22,0.20520759]
[1693469547324,0.07575675,223.51,223.21,0.20520759]
[1693469547624,0.07575675,223.51,223.22,0.20520759]
[1693469551726,0.07575675,223.51,223.22,0.27859303]
[1693469551927,0.07575675,223.51,223.23,0.20520759]
[1693469553630,0.07575675,223.51,223.23,0.27859303]
[1693469553825,0.07575675,223.51,223.24,0.20520759]
[1693469557027,0.07575675,223.51,223.24,0.27859303]
[1693469557330,0.07575675,223.51,223.25,0.20520759]
[1693469558434,0.14903578,223.51,223.26,0.07338544]
[1693469558634,0.14903578,223.51,223.27,0.20520759]
[1693469559534,0.07327903,223.49,223.28,0.07338544]
[1693469559728,0.07327903,223.49,223.29,0.20520759]
[1693469566929,0.07327903,223.48,223.29,0.20520759]
[1693469567737,0.07327903,223.49,223.29,0.20520759]
[1693469570639,0.07327903,223.48,223.28,0.07338544]
[1693469570839,0.07327903,223.48,223.29,0.20523732]
[1693469571834,0.07327903,223.49,223.29,0.20523732]
[1693469573543,0.07327903,223.49,223.28,0.07338544]
[1693469574044,0.07327903,223.49,223.29,0.20524112]
[1693469575239,0.07327903,223.49,223.27,0.07338544]
[1693469575440,0.07327903,223.49,223.28,0.20524138]
[1693469577748,0.22231481,223.51,223.27,0.07338544]
[1693469577749,0.07327903,223.48,223.27,0.07338544]
[1693469577949,0.07327903,223.48,223.26,0.07338544]
[1693469578149,0.07327903,223.48,223.27,0.20528361]
[1693469579552,0.07327903,223.49,223.27,0.20528361]
[1693469591366,0.07327903,223.5,223.27,0.20528361]
[1693469592862,0.07327903,223.49,223.27,0.20528361]
[1693469593067,0.07327903,223.5,223.27,0.20528361]
[1693469593469,0.07327903,223.49,223.27,0.20528361]
[1693469594267,0.07327903,223.5,223.27,0.20528361]
[1693469594469,0.07327903,223.49,223.27,0.20528361]
[1693469605481,0.07327903,223.48,223.27,0.20528361]
[1693469606481,0.07327903,223.48,223.27,0.27866905]
[1693469606680,0.07327903,223.48,223.28,0.20528361]
[1693469607083,0.07327903,223.48,223.26,0.07338544]
[1693469607281,0.07327903,223.48,223.27,0.27865213]
[1693469607479,0.07327903,223.48,223.28,0.20526669]
[1693469614888,0.07327903,223.47,223.28,0.20526669]
[1693469615288,0.07327903,223.48,223.28,0.20526669]
[1693469615789,0.07327903,223.48,223.28,0.27865213]
[1693469615989,0.07327903,223.48,223.28,0.07338544]
[1693469633700,0.07327903,223.48,223.27,0.07338544]
[1693469633901,0.07327903,223.48,223.28,0.2052623]
[1693469634902,0.07327903,223.48,223.28,0.27864774]
[1693469635101,0.07327903,223.48,223.28,0.07338544]
[1693469635701,0.07327903,223.48,223.27,0.07338544]
[1693469635902,0.07327903,223.48,223.28,0.20525518]
[1693469636103,0.07327903,223.48,223.28,0.27864062]
[1693469636303,0.07327903,223.48,223.27,0.07338544]
[1693469636504,0.07327903,223.48,223.28,0.20525474]
[1693469642305,0.07327903,223.48,223.28,0.27864018]
[1693469642505,0.07327903,223.48,223.28,0.07338544]
[1693469647399,0.07327903,223.48,223.27,0.07338544]
[1693469647602,0.07327903,223.48,223.28,0.20525476]
[1693469648207,0.07327903,223.48,223.28,0.2786402]
[1693469648502,0.07327903,223.48,223.28,0.07338544]
[1693469656115,0.07327903,223.48,222.87,2.4461816]
[1693469656317,0.07575675,223.51,223.28,0.07342302]
[1693469656318,0.07310657,223.48,223.28,0.07342302]
[1693469665117,0.07310657,223.48,223.29,0.20523587]
[1693469665723,0.07310657,223.48,223.28,0.07342302]
[1693469665923,0.07310657,223.48,223.29,0.20523169]
[1693469667522,0.07310657,223.49,223.29,0.20523169]
[1693469667824,0.07310657,223.49,223.29,0.27865471]
[1693469668018,0.07310657,223.49,223.3,0.20523169]
[1693469668419,0.07310657,223.5,223.3,0.20523169]
[1693469668618,0.07310657,223.5,223.28,0.07342302]
[1693469668924,0.07310657,223.5,223.29,0.20522753]
[1693469674431,0.14886332,223.51,223.29,0.20522753]
[1693469681935,0.14886332,223.51,223.28,0.20522753]
[1693469682137,0.14886332,223.51,223.29,0.20522753]
[1693469682435,0.14886332,223.51,223.3,0.20522753]
[1693469682636,0.14886332,223.51,223.27,0.07342302]
[1693469682837,0.14886332,223.51,223.28,0.20522093]
[1693469690340,0.14886332,223.51,223.28,0.27864395]
[1693469690534,0.14886332,223.51,223.29,0.20522093]
[1693469696344,0.07310657,223.5,223.29,0.20522093]
[1693469700649,0.07310657,223.5,223.29,0.27864395]
[1693469700850,0.07310657,223.5,223.3,0.20522093]
[1693469701151,0.14886332,223.51,223.3,0.20522093]
[1693469701451,0.07310657,223.5,223.3,0.27864395]
[1693469701650,0.07310657,223.5,223.31,0.20522093]
[1693469703750,0.14886332,223.51,223.31,0.20522093]
[1693469705452,0.14886332,223.51,223.29,0.07342302]
[1693469705649,0.14886332,223.51,223.3,0.20520528]
[1693469709560,0.07310657,223.5,223.3,0.20520528]
[1693469715261,0.14886332,223.51,223.3,0.20520528]
[1693469722467,0.07310657,223.5,223.3,0.20520528]
[1693469722867,0.14886332,223.51,223.3,0.20520528]
[1693469723269,0.07310657,223.5,223.3,0.20520528]
[1693469727870,0.14886332,223.51,223.3,0.20520528]
[1693469728274,0.07310657,223.5,223.3,0.20520528]
[1693469742491,0.07310657,223.5,223.3,0.2786283]
[1693469742787,0.07310657,223.5,223.3,0.07342302]
[1693469744287,0.07310657,223.5,223.31,0.20519957]
[1693469753994,0.14886332,223.51,223.31,0.20519957]
[1693469754194,0.07575675,223.51,223.35,0.07342302]
[1693469754390,0.07575675,223.51,223.36,0.20519957]
[1693469754797,0.07575675,223.51,223.33,0.07342302]
[1693469754999,0.07575675,223.51,223.34,0.2049714]
[1693469755699,0.07575675,223.51,223.35,0.2049714]
[1693469755999,0.07575675,223.51,223.36,0.2049714]
[1693469756200,0.07575675,223.51,223.32,0.07342302]
[1693469756401,0.07575675,223.51,223.33,0.20499569]
[1693469756898,0.07575675,223.51,223.34,0.20499569]
[1693469757099,0.07575675,223.51,223.32,0.20499569]
[1693469757299,0.07575675,223.51,223.33,0.20499569]
[1693469757601,0.07575675,223.51,223.34,0.20499569]
[1693469757796,0.07575675,223.51,223.35,0.20499569]
[1693469757997,0.07575675,223.51,223.36,0.20499569]
[1693469758198,0.07575675,223.51,223.31,0.20499569]
[1693469758399,0.07575675,223.51,223.32,0.2049956]
[1693469758600,0.07575675,223.51,223.33,0.2049956]
[1693469758800,0.07575675,223.51,223.34,0.2049956]
[1693469759099,0.07575675,223.51,223.35,0.2049956]
[1693469759300,0.07575675,223.51,223.36,0.2049956]
[1693469759501,0.07575675,223.51,223.3,0.07342302]
[1693469759800,0.07575675,223.51,223.31,0.20499554]
[1693469762302,0.07575675,223.51,223.32,0.20499554]
[1693469762499,0.07575675,223.51,223.33,0.20499554]
[1693469762696,0.07575675,223.51,223.3,0.20499554]
[1693469762896,0.07575675,223.51,223.31,0.20499554]
[1693469763096,0.07575675,223.51,223.32,0.20499554]
[1693469763398,0.07575675,223.51,223.33,0.20499554]
[1693469763596,0.07575675,223.51,223.34,0.20499554]
[1693469763797,0.07575675,223.51,223.35,0.20499554]
[1693469763999,0.07575675,223.51,223.3,0.20499554]
[1693469764202,0.07575675,223.51,223.31,0.20499554]
[1693469764404,0.07575675,223.51,223.3,0.20499554]
[1693469764597,0.07575675,223.51,223.31,0.20499554]
[1693469764801,0.07575675,223.51,223.32,0.20499554]
[1693469764999,0.07575675,223.51,223.33,0.20499554]
[1693469765202,0.07575675,223.51,223.3,0.20499554]
[1693469765400,0.07575675,223.51,223.31,0.20499554]
[1693469765604,0.07575675,223.51,223.32,0.20499554]
[1693469765904,0.07575675,223.51,223.33,0.20499554]
[1693469766101,0.07575675,223.51,223.34,0.20499554]
[1693469766306,0.07575675,223.51,223.35,0.20499554]
[1693469766502,0.07575675,223.51,223.29,0.20499554]
[1693469766701,0.07575675,223.51,223.3,0.20499554]
[1693469766900,0.07575675,223.51,223.31,0.20499554]
[1693469767102,0.07575675,223.51,223.32,0.20499554]
[1693469767307,0.07575675,223.51,223.29,0.20499554]
[1693469767508,0.07575675,223.51,223.3,0.20499554]
[1693469767710,0.07575675,223.51,223.29,0.20499554]
[1693469767905,0.07575675,223.51,223.3,0.20499554]
[1693469768104,0.07575675,223.51,223.31,0.20499554]
[1693469768309,0.07575675,223.51,223.29,0.20499554]
[1693469768504,0.07575675,223.51,223.3,0.20499554]
[1693469768710,0.07575675,223.51,223.31,0.20499554]
[1693469768910,0.07575675,223.51,223.29,0.20499554]
[1693469769106,0.07575675,223.51,223.3,0.20499554]
[1693469769411,0.07575675,223.51,223.31,0.20499554]
[1693469769612,0.07575675,223.51,223.29,0.20499554]
[1693469769811,0.07575675,223.51,223.3,0.20499554]
[1693469770004,0.07575675,223.51,223.31,0.20499554]
[1693469770205,0.07575675,223.51,223.32,0.20499554]
[1693469770409,0.07575675,223.51,223.29,0.20499554]
[1693469770709,0.07575675,223.51,223.3,0.20499554]
[1693469770908,0.07575675,223.51,223.31,0.20499554]
[1693469771107,0.07575675,223.51,223.29,0.20499554]
[1693469771311,0.07575675,223.51,223.28,0.07342302]
[1693469771312,0.07575675,223.51,223.3,0.20499554]
[1693469771509,0.07575675,223.51,223.31,0.20499554]
[1693469771707,0.07575675,223.51,223.29,0.20499554]
[1693469771910,0.07575675,223.51,223.3,0.20499554]
[1693469772209,0.07575675,223.51,223.28,0.07342302]
[1693469772210,0.07575675,223.51,223.31,0.20499554]
[1693469772407,0.07575675,223.51,223.32,0.20499554]
[1693469772612,0.07575675,223.51,223.29,0.20499554]
[1693469772809,0.07575675,223.51,223.3,0.20499554]
[1693469773007,0.07575675,223.51,223.31,0.20499554]
[1693469773210,0.07575675,223.51,223.32,0.20499554]
[1693469773408,0.07575675,223.51,223.29,0.20499554]
[1693469773712,0.07575675,223.51,223.3,0.20499554]
[1693469773912,0.07575675,223.51,223.31,0.20499554]
[1693469774114,0.07575675,223.51,223.32,0.20499554]
[1693469774412,0.07575675,223.51,223.33,0.20499554]
[1693469774714,0.07575675,223.51,223.34,0.20499554]
[1693469774912,0.07575675,223.51,223.35,0.20499554]
[1693469775113,0.07575675,223.51,223.29,0.20499554]
[1693469775415,0.07575675,223.51,223.3,0.20501469]
[1693469775607,0.07575675,223.51,223.29,0.20501469]
[1693469775811,0.07575675,223.51,223.3,0.20501469]
[1693469776008,0.07575675,223.51,223.31,0.20501469]
[1693469776207,0.07575675,223.51,223.29,0.20501469]
[1693469776413,0.07575675,223.51,223.3,0.20501469]
[1693469776607,0.07575675,223.51,223.29,0.20501469]
[1693469776812,0.07575675,223.51,223.3,0.20501469]
[1693469777113,0.07575675,223.51,223.31,0.20501469]
[1693469777307,0.07575675,223.51,223.32,0.20501469]
[1693469777513,0.07575675,223.51,223.33,0.20501469]
[1693469777711,0.07575675,223.51,223.34,0.20501469]
[1693469777912,0.07575675,223.51,223.29,0.20501469]
[1693469778114,0.07575675,223.51,223.3,0.20501469]
[1693469778309,0.07575675,223.51,223.29,0.20501469]
[1693469778514,0.07575675,223.51,223.3,0.20501469]
[1693469778708,0.07575675,223.51,223.29,0.20501469]
[1693469778909,0.07575675,223.51,223.3,0.20501469]
[1693469779113,0.07575675,223.51,223.31,0.20501469]
[1693469779313,0.07575675,223.51,223.32,0.20501469]
[1693469779613,0.07575675,223.51,223.33,0.20501469]
[1693469779813,0.07575675,223.51,223.3,0.20501469]
[1693469780014,0.07575675,223.51,223.31,0.20501469]
[1693469780314,0.07575675,223.51,223.32,0.20501469]
[1693469780515,0.07575675,223.51,223.3,0.20501469]
[1693469780708,0.07575675,223.51,223.31,0.20501469]
[1693469780909,0.07575675,223.51,223.3,0.20501469]
[1693469781112,0.07575675,223.51,223.31,0.20501469]
[1693469781313,0.07575675,223.51,223.32,0.20501469]
[1693469781515,0.07575675,223.51,223.33,0.20501469]
[1693469781807,0.07575675,223.51,223.29,0.07342302]
[1693469781808,0.07575675,223.51,223.34,0.20501469]
[1693469782015,0.07575675,223.51,223.3,0.20501469]
[1693469782209,0.07575675,223.51,223.31,0.20501469]
[1693469782409,0.07575675,223.51,223.3,0.20501469]
[1693469782613,0.07575675,223.51,223.31,0.20501469]
[1693469782810,0.07575675,223.51,223.32,0.20501469]
[1693469783014,0.07575675,223.51,223.33,0.20501469]
[1693469783313,0.07575675,223.51,223.34,0.20501469]
[1693469783517,0.07575675,223.51,223.3,0.27843771]
[1693469783717,0.07575675,223.51,223.31,0.20501469]
[1693469785517,0.07575675,223.51,223.31,0.27843771]
[1693469785714,0.07575675,223.51,223.32,0.20501469]
[1693469786817,0.07575675,223.51,223.32,0.27843771]
[1693469787017,0.07575675,223.51,223.33,0.20501469]
[1693469787621,0.07575675,223.51,223.33,0.27843771]
[1693469787821,0.07575675,223.51,223.34,0.20501469]
[1693469788619,0.07575675,223.51,223.35,0.07342302]
[1693469788821,0.07575675,223.51,223.36,0.20501469]
[1693469804733,0.07575675,223.51,223.36,0.27843771]
[1693469804934,0.07575675,223.51,223.37,0.20501469]
[1693469806533,0.07575675,223.51,223.36,0.07342302]
[1693469806734,0.07575675,223.51,223.37,0.20495294]
[1693469807338,0.07575675,223.51,223.35,0.07342302]
[1693469807541,0.07575675,223.51,223.36,0.27837649]
[1693469807741,0.07575675,223.51,223.37,0.20495347]
[1693469808641,0.07575675,223.51,223.36,0.07342302]
[1693469808836,0.07575675,223.51,223.37,0.20495424]
[1693469833455,0.07575675,223.51,223.37,0.27837726]
[1693469833656,0.07575675,223.51,223.38,0.20495424]
[1693469859881,0.07575675,223.51,223.37,0.07342302]
[1693469860179,0.07575675,223.51,223.36,0.07342302]
[1693469860379,0.07575675,223.51,223.37,0.20496811]
[1693469872087,0.07575675,223.51,223.37,0.27839113]
[1693469872280,0.07575675,223.51,223.38,0.20496811]
[1693469883793,0.07575675,223.51,223.39,0.20496811]
[1693469883986,0.07575675,223.51,223.38,0.20496811]
[1693469884187,0.07575675,223.51,223.39,0.2049108]
[1693469884390,0.07575675,223.51,223.37,0.07334065]
[1693469884590,0.07575675,223.51,223.38,0.20491049]
[1693469884790,0.07575675,223.51,223.37,0.20491049]
[1693469884992,0.07575675,223.51,223.38,0.20491049]
[1693469886490,0.07575675,223.51,223.39,0.20491049]
[1693469886686,0.07575675,223.51,223.36,0.07334065]
[1693469886887,0.07575675,223.51,223.37,0.20490766]
[1693469896503,0.07575675,223.51,223.37,0.27824831]
[1693469896706,0.07575675,223.51,223.38,0.20490766]
[1693469905906,0.07575675,223.51,223.38,0.27824831]
[1693469906211,0.07575675,223.51,223.39,0.20490766]
[1693469936938,0.07575675,223.51,223.39,0.27824831]
[1693469937137,0.07575675,223.51,223.4,0.20490766]
[1693469940544,0.07575675,223.51,223.39,0.07334065]
[1693469940742,0.07575675,223.51,223.38,0.07334065]
[1693469940943,0.07575675,223.51,223.39,0.20488058]
[1693469945844,0.07575675,223.51,223.39,0.27822123]
[1693469946038,0.07575675,223.51,223.4,0.20488058]
[1693469950144,0.07575675,223.51,223.41,0.20488058]
[1693469950349,0.07575675,223.51,223.39,0.07334065]
[1693469950543,0.07575675,223.51,223.4,0.20486437]
[1693469951144,0.07575675,223.51,223.38,0.07334065]
[1693469951145,0.07575675,223.51,223.39,0.20486437]
[1693469951343,0.07575675,223.51,223.4,0.20486437]
[1693469951544,0.07575675,223.51,223.39,0.20486437]
[1693469951847,0.07575675,223.51,223.4,0.20486437]
[1693469952149,0.07575675,223.51,223.41,0.20486437]
[1693469952354,0.07575675,223.51,223.39,0.20486437]
[1693469952553,0.07575675,223.51,223.4,0.20486445]
[1693469952749,0.07575675,223.51,223.39,0.20486445]
[1693469952950,0.07575675,223.51,223.4,0.20486445]
[1693469953250,0.07575675,223.51,223.41,0.20486445]
[1693469953445,0.07575675,223.51,223.38,0.07334065]
[1693469953446,0.07575675,223.51,223.39,0.20486445]
[1693469953653,0.07575675,223.51,223.4,0.20485877]
[1693469953848,0.07575675,223.51,223.41,0.20485877]
[1693469954045,0.07575675,223.51,223.38,0.07334065]
[1693469954250,0.07575675,223.51,223.39,0.20486092]
[1693469968356,0.07575675,223.51,223.39,0.27820157]
[1693469968656,0.07575675,223.51,223.4,0.20486092]
[1693469971062,0.07575675,223.51,223.44,0.07334065]
[1693469971267,0.07575675,223.51,223.45,0.27820157]
[1693469971559,0.07575675,223.51,223.46,0.20486092]
[1693469972154,0.07575675,223.51,223.47,0.20486092]
[1693469972361,0.07575675,223.51,223.43,0.07334065]
[1693469972564,0.07575675,223.51,223.44,0.20462457]
[1693469973163,0.07575675,223.51,223.43,0.20462457]
[1693469973363,0.07575675,223.51,223.44,0.20462457]
[1693469973565,0.07575675,223.51,223.45,0.20462457]
[1693469973762,0.07575675,223.51,223.43,0.20462457]
[1693469973963,0.07575675,223.51,223.44,0.20462457]
[1693469974158,0.07575675,223.51,223.45,0.20462457]
[1693469974463,0.07575675,223.51,223.46,0.20462457]
[1693469974665,0.07575675,223.51,223.47,0.20462457]
[1693469974962,0.07575675,223.51,223.41,0.07334065]
[1693469975163,0.07575675,223.51,223.42,0.20462061]
[1693469975966,0.07575675,223.51,223.43,0.20462061]
[1693469976167,0.07575675,223.51,223.41,0.20462061]
[1693469976463,0.07575675,223.51,223.42,0.20462061]
[1693469976662,0.07575675,223.51,223.41,0.20462061]
[1693469976867,0.07575675,223.51,223.42,0.20462061]
[1693469977165,0.07575675,223.51,223.43,0.20462061]
[1693469977357,0.07575675,223.51,223.41,0.20462061]
[1693469977560,0.07575675,223.51,223.42,0.20462061]
[1693469977859,0.07575675,223.51,223.43,0.20462061]
[1693469978059,0.07575675,223.51,223.4,0.20462061]
[1693469978263,0.07575675,223.51,223.41,0.20462061]
[1693469978462,0.07575675,223.51,223.42,0.20462061]
[1693469978660,0.07575675,223.51,223.43,0.20462061]
[1693469978863,0.07575675,223.51,223.4,0.20462061]
[1693469979060,0.07575675,223.51,223.41,0.20462061]
[1693469979259,0.07575675,223.51,223.42,0.20462061]
[1693469979460,0.07575675,223.51,223.39,0.07334065]
[1693469979461,0.07575675,223.51,223.43,0.20462061]
[1693469979659,0.07575675,223.51,223.4,0.20462061]
[1693469979862,0.07575675,223.51,223.41,0.20462061]
[1693469980066,0.07575675,223.51,223.42,0.20462061]
[1693469980265,0.07575675,223.51,223.4,0.20462061]
[1693469980463,0.07575675,223.51,223.41,0.20462061]
[1693469980664,0.07575675,223.51,223.42,0.20462061]
[1693469980865,0.07575675,223.51,223.4,0.20462061]
[1693469981164,0.07575675,223.51,223.41,0.20462061]
[1693469981364,0.07575675,223.51,223.42,0.20462061]
[1693469981666,0.07575675,223.51,223.43,0.20462061]
[1693469981967,0.07575675,223.51,223.44,0.20462061]
[1693469982167,0.07575675,223.51,223.45,0.20462061]
[1693469982469,0.07575675,223.51,223.46,0.20462061]
[1693469982667,0.07575675,223.51,223.47,0.20462061]
[1693469982971,0.07575675,223.51,223.38,0.07334065]
[1693469983270,0.07575675,223.51,223.39,0.20462548]
[1693469989473,0.07575675,223.51,223.4,0.20462548]
[1693469989771,0.07575675,223.51,223.41,0.20462548]
[1693469989966,0.07575675,223.51,223.42,0.20462548]
[1693469990172,0.07575675,223.51,223.43,0.20462548]
[1693469990367,0.07575675,223.51,223.38,0.20462548]
[1693469990568,0.07575675,223.51,223.39,0.20462548]
[1693469990771,0.07575675,223.51,223.4,0.20462548]
[1693469990969,0.07575675,223.51,223.41,0.20462548]
[1693469991172,0.07575675,223.51,223.38,0.20462548]
[1693469991367,0.07575675,223.51,223.39,0.20462548]
[1693469991571,0.07575675,223.51,223.38,0.20462548]
[1693469991773,0.07575675,223.51,223.39,0.20462548]
[1693469991975,0.07575675,223.51,223.38,0.20462548]
[1693469992173,0.07575675,223.51,223.39,0.20462548]
[1693469992375,0.07575675,223.51,223.4,0.20462548]
[1693469992574,0.07575675,223.51,223.38,0.20462548]
[1693469992772,0.07575675,223.51,223.39,0.20462548]
[1693469992973,0.07575675,223.51,223.4,0.20462548]
[1693469993169,0.07575675,223.51,223.41,0.20462548]
[1693469993373,0.07575675,223.51,223.39,0.20462548]
[1693469993568,0.07575675,223.51,223.4,0.20462548]
[1693469993768,0.07575675,223.51,223.41,0.20462548]
[1693469993971,0.07575675,223.51,223.39,0.20462548]
[1693469994274,0.07575675,223.51,223.4,0.20462548]
[1693469994574,0.07575675,223.51,223.41,0.20462548]
[1693469994775,0.07575675,223.51,223.39,0.20462548]
[1693469994974,0.07575675,223.51,223.4,0.20462548]
[1693469995176,0.07575675,223.51,223.41,0.20462548]
[1693469995378,0.07575675,223.51,223.38,0.07334065]
[1693469995379,0.07575675,223.51,223.39,0.20462548]
[1693469995572,0.07575675,223.51,223.4,0.20462548]
[1693469995768,0.07575675,223.51,223.41,0.20462548]
[1693469995972,0.07575675,223.51,223.42,0.20462548]
[1693469996168,0.07575675,223.51,223.39,0.20462548]
[1693469996475,0.07575675,223.51,223.4,0.20462548]
[1693469996669,0.07575675,223.51,223.39,0.20462548]
[1693469996871,0.07575675,223.51,223.4,0.20462548]
[1693469997075,0.07575675,223.51,223.39,0.20462548]
[1693469997271,0.07575675,223.51,223.4,0.20462548]
[1693469997473,0.07575675,223.51,223.39,0.20462548]
[1693469997676,0.07575675,223.51,223.4,0.20462548]
[1693469997876,0.07575675,223.51,223.39,0.20462548]
[1693469998076,0.07575675,223.51,223.4,0.20462548]
[1693470000879,0.07575675,223.51,223.4,0.27796613]
[1693470001079,0.07575675,223.51,223.41,0.20462548]
[1693470002785,0.07575675,223.51,223.41,0.27796613]
[1693470002983,0.07575675,223.51,223.42,0.20462548]
[1693470003977,0.07575675,223.51,223.42,0.27796613]
[1693470004181,0.07575675,223.51,223.43,0.20462548]
[1693470004979,0.07575675,223.51,223.43,0.27796613]
[1693470005183,0.07575675,223.51,223.44,0.20462548]
[1693470005982,0.07575675,223.51,223.45,0.07334065]
[1693470006281,0.07575675,223.51,223.46,0.20462548]
[1693470006886,0.07575675,223.51,223.46,0.27796613]
[1693470007087,0.07575675,223.51,223.47,0.20462548]
[1693470019288,0.07575675,223.51,223.45,0.07334065]
[1693470019490,0.07575675,223.51,223.46,0.20463519]
[1693470021791,0.07575675,223.51,223.46,0.27797584]
[1693470021990,0.07575675,223.51,223.47,0.20463519]
[1693470022291,0.07575675,223.51,223.46,0.07334065]
[1693470022491,0.07575675,223.51,223.47,0.20463854]
[1693470022889,0.07575675,223.51,223.46,0.20463854]
[1693470023093,0.07575675,223.51,223.47,0.2046456]
[1693470023292,0.07575675,223.51,223.45,0.07334065]
[1693470023496,0.07575675,223.51,223.46,0.20464289]
[1693470023889,0.07575675,223.51,223.46,0.27798354]
[1693470024088,0.07575675,223.51,223.47,0.20464289]
[1693470024392,0.07575675,223.51,223.45,0.07334065]
[1693470024593,0.07575675,223.51,223.46,0.20464225]
[1693470026094,0.07575675,223.51,223.46,0.2779829]
[1693470026395,0.07575675,223.51,223.47,0.20464225]
[1693470026791,0.07575675,223.51,223.39,0.14668131]
[1693470026792,0.07575675,223.51,223.46,0.2779829]
[1693470026996,0.07575675,223.51,223.47,0.20462664]
[1693470028697,0.07575675,223.51,223.46,0.07334065]
[1693470028895,0.07575675,223.51,223.47,0.20463602]
[1693470032195,0.07575675,223.51,223.4,0.07334065]
[1693470032498,0.07575675,223.51,223.41,0.20486941]
[1693470032796,0.07575675,223.51,223.38,0.07334065]
[1693470032991,0.07575675,223.51,223.39,0.20486883]
[1693470033397,0.07575675,223.51,223.38,0.20486883]
[1693470033597,0.07575675,223.51,223.39,0.20486883]
[1693470033796,0.07575675,223.51,223.38,0.20486883]
[1693470033992,0.07575675,223.51,223.39,0.20486883]
[1693470034295,0.07575675,223.51,223.4,0.20486883]
[1693470034491,0.07575675,223.51,223.41,0.20486883]
[1693470034700,0.07575675,223.51,223.37,0.20486883]